fUST/lending_fUST_20251213
["ID","MTS","AMOUNT","RATE_DAILY","PERIOD"]
[398364239,1765559038545,-500.0,0.00041917,120]
[398364240,1765559038580,-786.96,0.00041917,120]
[398364241,1765559038615,-501.22357723,0.00041917,120]
[398364242,1765559038650,-500.0,0.00041917,120]
[398364243,1765559038684,-680.52,0.00041917,120]
[398364244,1765559038717,-1363.67,0.00041917,120]
[398364245,1765559038752,-568.22,0.00041917,120]
[398364246,1765559038785,-640.61,0.00041917,120]
[398364247,1765559038821,-500.0,0.00041917,120]
[398364248,1765559038855,-500.0,0.00041917,120]
[398364249,1765559038888,-500.0,0.00041917,120]
[398364250,1765559038920,-500.0,0.00041917,120]
[398364251,1765559038953,-1619.86,0.00041917,120]
[398364252,1765559038987,-703.66,0.00041917,120]
[398364253,1765559039020,-500.0,0.00041917,120]
[398364254,1765559039054,-609.72178869,0.00041917,120]
[398364255,1765559039088,-533.28,0.00041917,120]
[398364256,1765559039124,-500.0,0.00041917,120]
[398364257,1765559039161,-567.69,0.00041917,120]
[398364258,1765559039201,-500.0,0.00041917,120]
[398364259,1765559039239,-1644.61,0.00041917,120]
[398364260,1765559039274,-654.37,0.00041917,120]
[398364261,1765559039309,-500.0,0.00041917,120]
[398364262,1765559039345,-695.56,0.00041917,120]
[398364263,1765559039380,-565.10379197,0.00041917,120]
[398364264,1765559039414,-500.0,0.00041917,120]
[398364265,1765559039448,-500.0,0.00041917,120]
[398364266,1765559039481,-500.0,0.00041917,120]
[398364267,1765559039520,-500.0,0.00041917,120]
[398364268,1765559039560,-670.85,0.00041917,120]
[398364269,1765559039601,-1226.93,0.00041917,120]
[398364270,1765559039646,-500.0,0.00041917,120]
[398364271,1765559039686,-500.0,0.00041917,120]
[398364272,1765559039733,-1085.27,0.00041917,120]
[398364273,1765559039772,-1127.01,0.00041917,120]
[398364274,1765559039806,-1439.87,0.00041917,120]
[398364275,1765559039839,-500.0,0.00041917,120]
[398364276,1765559039873,-500.0,0.00041917,120]
[398364277,1765559039908,-500.0,0.00041917,120]
[398364278,1765559039944,-500.0,0.00041917,120]
[398364279,1765559039982,-838.88,0.00041917,120]
[398364280,1765559040025,-500.0,0.00041917,120]
[398364281,1765559040068,-557.55,0.00041917,120]
[398364282,1765559040109,-500.0,0.00041917,120]
[398364283,1765559040151,-500.0,0.00041917,120]
[398364284,1765559040196,-500.0,0.00041917,120]
[398364285,1765559040239,-500.0,0.00041917,120]
[398364286,1765559040281,-500.0,0.00041917,120]
[398364287,1765559040319,-500.0,0.00041917,120]
[398364288,1765559040358,-1250.0,0.00041917,120]
[398364289,1765559040399,-500.0,0.00041917,120]
[398364290,1765559040438,-571.36,0.00041917,120]
[398364291,1765559040477,-500.0,0.00041917,120]
[398364292,1765559040515,-1126.0,0.00041917,120]
[398364293,1765559040552,-291.07615916,0.00041917,120]
[398364294,1765559040592,-684.92,0.00041917,120]
[398364295,1765559040632,-500.0,0.00041917,120]
[398364296,1765559040672,-500.0,0.00041917,120]
[398364297,1765559040709,-801.26,0.00041917,120]
[398364298,1765559040745,-500.0,0.00041917,120]
[398364299,1765559040779,-500.0,0.00041917,120]
[398364300,1765559040815,-612.73,0.00041917,120]
[398364301,1765559040849,-500.0,0.00041917,120]
[398364302,1765559040888,-500.0,0.00041917,120]
[398364303,1765559040924,-500.0,0.00041917,120]
[398364304,1765559040962,-500.0,0.00041917,120]
[398364305,1765559041000,-500.0,0.00041917,120]
[398364306,1765559041036,-284.43,0.00041917,120]
[398364307,1765559041072,-500.0,0.00041917,120]
[398364308,1765559041106,-509.03,0.00041917,120]
[398364309,1765559041141,-500.0,0.00041917,120]
[398364310,1765559041176,-500.0,0.00041917,120]
[398364311,1765559041211,-570.07,0.00041917,120]
[398364312,1765559041246,-570.53,0.00041917,120]
[398364313,1765559041281,-500.0,0.00041917,120]
[398364314,1765559041316,-503.52,0.00041917,120]
[398364315,1765559041353,-500.0,0.00041917,120]
[398364316,1765559041391,-500.0,0.00041917,120]
[398364317,1765559041427,-500.0,0.00041917,120]
[398364318,1765559041465,-500.0,0.00041917,120]
[398364319,1765559041503,-500.0,0.00041917,120]
[398364320,1765559041540,-1441.51,0.00041917,120]
[398364321,1765559041579,-956.87,0.00041917,120]
[398364322,1765559041615,-658.49,0.00041917,120]
[398364323,1765559041815,-500.0,0.00041917,120]
[398364324,1765559041856,-1390.11,0.00041917,120]
[398364325,1765559041893,-500.0,0.00041917,120]
[398364326,1765559041929,-656.63,0.00041917,120]
[398364327,1765559041965,-612.94,0.00041917,120]
[398364328,1765559042000,-540.31,0.00041917,120]
[398364329,1765559042035,-6116.92,0.00041917,120]
[398364330,1765559042071,-500.0,0.00041917,120]
[398364331,1765559042107,-500.0,0.00041917,120]
[398364332,1765559042142,-500.0,0.00041917,120]
[398364333,1765559042176,-191.24330102,0.00041917,120]
[398364334,1765559042211,-500.0,0.00041917,120]
[398364335,1765559042245,-568.75325228,0.00041917,120]
[398364336,1765559042280,-500.0,0.00041917,120]
[398364337,1765559042316,-1254.82,0.00041917,120]
[398364338,1765559042353,-727.42,0.00041917,120]
[398364339,1765559042391,-1353.24,0.00041917,120]
[398364340,1765559042429,-1002.15,0.00041917,120]
[398364341,1765559042470,-500.0,0.00041917,120]
[398364342,1765559042510,-500.0,0.00041917,120]
[398364343,1765559042548,-500.0,0.00041917,120]
[398364344,1765559042585,-4051.53,0.00041917,120]
[398364345,1765559042624,-500.0,0.00041917,120]
[398364346,1765559042661,-500.0,0.00041917,120]
[398364347,1765559042700,-500.0,0.00041917,120]
[398364348,1765559042743,-1370.61,0.00041917,120]
[398364349,1765559042782,-500.0,0.00041917,120]
[398364350,1765559042819,-500.0,0.00041917,120]
[398364351,1765559042861,-500.0,0.00041917,120]
[398364352,1765559042897,-500.0,0.00041917,120]
[398364353,1765559042933,-500.0,0.00041917,120]
[398364354,1765559042987,-500.0,0.00041917,120]
[398364355,1765559043031,-4792.62,0.00041917,120]
[398364356,1765559043080,-500.0,0.00041917,120]
[398364357,1765559043123,-882.96,0.00041917,120]
[398364358,1765559043167,-500.0,0.00041917,120]
[398364359,1765559043218,-3042.53,0.00041917,120]
[398364360,1765559043268,-500.0,0.00041917,120]
[398364361,1765559043312,-724.15,0.00041917,120]
[398364362,1765559043357,-1140.1,0.00041917,120]
[398364363,1765559043403,-500.0,0.00041917,120]
[398364364,1765559043448,-247.29722,0.00041917,120]
[398364365,1765559043491,-1070.21,0.00041917,120]
[398364366,1765559043535,-500.0,0.00041917,120]
[398364367,1765559043580,-1540.11,0.00041917,120]
[398364368,1765559043623,-500.0,0.00041917,120]
[398364369,1765559043667,-3766.38,0.00041917,120]
[398364370,1765559043712,-517.69,0.00041917,120]
[398364371,1765559043758,-500.0,0.00041917,120]
[398364372,1765559043801,-500.62517322,0.00041917,120]
[398364373,1765559043844,-500.0,0.00041917,120]
[398364374,1765559043892,-665.47,0.00041917,120]
[398364375,1765559043946,-642.33,0.00041917,120]
[398364376,1765559043999,-2396.38,0.00041917,120]
[398364377,1765559044049,-500.0,0.00041917,120]
[398364378,1765559044092,-500.0,0.00041917,120]
[398364379,1765559044139,-6822.47,0.00041917,120]
[398364380,1765559044182,-737.24,0.00041917,120]
[398364381,1765559044226,-1104.83,0.00041917,120]
[398364382,1765559044269,-500.0,0.00041917,120]
[398364383,1765559044312,-500.0,0.00041917,120]
[398364384,1765559044355,-500.0,0.00041917,120]
[398364385,1765559044396,-500.0,0.00041917,120]
[398364386,1765559044438,-747.76,0.00041917,120]
[398364387,1765559044481,-500.0,0.00041917,120]
[398364388,1765559044523,-500.0,0.00041917,120]
[398364389,1765559044564,-711.97,0.00041917,120]
[398364390,1765559044606,-529.57,0.00041917,120]
[398364391,1765559044647,-8509.4,0.00041917,120]
[398364392,1765559044689,-1295.86,0.00041917,120]
[398364393,1765559044735,-645.43502473,0.00041917,120]
[398364394,1765559044782,-500.0,0.00041917,120]
[398364395,1765559044829,-500.0,0.00041917,120]
[398364396,1765559044875,-3869.1,0.00041917,120]
[398364397,1765559044918,-821.88,0.00041917,120]
[398364398,1765559044968,-2102.78,0.00041917,120]
[398364399,1765559045019,-977.51,0.00041917,120]
[398364400,1765559045064,-757.37,0.00041917,120]
[398364401,1765559045108,-1091.49,0.00041917,30]
[398364402,1765559045151,-2193.68,0.00041917,120]
[398364403,1765559045196,-500.0,0.00041917,30]
[398364404,1765559045239,-2995.42,0.00041917,120]
[398364405,1765559045282,-877.47,0.00041917,120]
[398364406,1765559045325,-500.0,0.00041917,120]
[398364407,1765559045375,-878.07,0.00041917,120]
[398364408,1765559045420,-502.22045783,0.00041917,120]
[398364409,1765559045461,-500.0,0.00041917,120]
[398364410,1765559045504,-500.0,0.00041917,120]
[398364411,1765559045547,-1473.95,0.00041917,120]
[398364412,1765559045587,-1886.97,0.00041917,120]
[398364413,1765559045626,-1507.92,0.00041917,120]
[398364414,1765559045666,-558.94,0.00041917,120]
[398364415,1765559045707,-1266.98,0.00041917,120]
[398364416,1765559045746,-500.0,0.00041917,120]
[398364417,1765559045791,-500.0,0.00041917,120]
[398364418,1765559046010,-500.0,0.00041917,120]
[398364419,1765559046053,-2444.73,0.00041917,120]
[398364420,1765559046095,-633.82,0.00041917,120]
[398364421,1765559046136,-500.0,0.00041917,120]
[398364422,1765559046180,-500.0,0.00041917,120]
[398364423,1765559046228,-272.0,0.00041917,60]
[398364424,1765559046271,-500.0,0.00041918,120]
[398364425,1765559046315,-15196.0,0.00041998,120]
[398364426,1765559046357,-500.0,0.00042,120]
[398364427,1765559046398,-180.03283634,0.00042,120]
[398364428,1765559046441,-1000.0,0.00042,120]
[398364429,1765559046493,-304.0,0.00042,120]
[398364430,1765559046536,-150.0,0.000421,120]
[398364431,1765559046581,-1500.0,0.000421,38]
[398364432,1765559046626,-6062.91,0.00042191,120]
[398364433,1765559046670,-1252.44645609,0.00042191,60]
[398364434,1765559046714,-500.0,0.00042191,120]
[398364435,1765559046757,-500.0,0.00042191,120]
[398364436,1765559046797,-501.01730277,0.00042191,120]
[398364437,1765559046836,-500.0,0.00042191,120]
[398364438,1765559046876,-500.0,0.00042191,120]
[398364439,1765559046917,-500.0,0.00042191,120]
[398364440,1765559046957,-500.81062484,0.00042191,120]
[398364441,1765559046998,-776.11,0.00042191,120]
[398364442,1765559047039,-501.29714016,0.00042191,120]
[398364443,1765559047079,-502.26690951,0.00042191,120]
[398364444,1765559047121,-500.0,0.00042191,120]
[398364445,1765559047162,-500.0,0.00042191,120]
[398364446,1765559047204,-500.0,0.00042191,120]
[398364447,1765559047245,-500.0,0.00042191,120]
[398364448,1765559047288,-888.02,0.00042191,120]
[398364449,1765559047330,-500.0,0.00042191,120]
[398364450,1765559047371,-500.0,0.00042191,120]
[398364451,1765559047410,-809.03,0.00042191,120]
[398364452,1765559047453,-500.0,0.00042191,120]
[398364453,1765559047493,-500.0,0.00042191,120]
[398364454,1765559047532,-525.95,0.00042191,120]
[398364455,1765559047571,-557.91,0.00042191,41]
[398364456,1765559047611,-500.0,0.00042191,120]
[398364457,1765559047651,-500.0,0.00042191,120]
[398364458,1765559047701,-500.0,0.00042191,120]
[398364459,1765559047746,-500.0,0.00042191,120]
[398364460,1765559047791,-500.0,0.00042191,120]
[398364461,1765559047832,-544.55,0.00042191,120]
[398364462,1765559047876,-918.87,0.00042191,120]
[398364463,1765559047918,-792.62,0.00042191,120]
[398364464,1765559047959,-500.0,0.00042191,120]
[398364465,1765559048001,-500.0,0.00042191,120]
[398364466,1765559048046,-500.0,0.00042191,60]
[398364467,1765559048094,-500.0,0.00042191,120]
[398364468,1765559048143,-210.16381432,0.00042191,120]
[398364469,1765559048191,-1249.97,0.00042191,120]
[398364470,1765559048242,-1147.67,0.00042191,120]
[398364471,1765559048288,-891.27,0.00042191,120]
[398364472,1765559048333,-500.0,0.00042191,120]
[398364473,1765559048378,-560.86,0.00042191,120]
[398364474,1765559048428,-500.0,0.00042191,120]
[398364475,1765559048473,-518.91,0.00042191,120]
[398364476,1765559048518,-500.0,0.00042191,120]
[398364477,1765559048561,-500.0,0.00042191,120]
[398364478,1765559048603,-864.65,0.00042191,120]
[398364479,1765559048643,-500.0,0.00042191,90]
[398364480,1765559048684,-500.0,0.00042191,120]
[398364481,1765559048726,-500.0,0.00042191,120]
[398364482,1765559048772,-500.38,0.00042191,120]
[398364483,1765559048815,-500.0,0.00042191,120]
[398364484,1765559048859,-725.76,0.00042191,120]
[398364485,1765559048903,-500.0,0.00042191,120]
[398364486,1765559048944,-500.0,0.00042191,120]
[398364487,1765559048985,-557.79,0.00042191,120]
[398364488,1765559049026,-500.0,0.00042191,120]
[398364489,1765559049067,-500.0,0.00042191,120]
[398364490,1765559049106,-510.67,0.00042191,120]
[398364491,1765559049149,-500.0,0.00042191,120]
[398364492,1765559049190,-628.67,0.00042191,120]
[398364493,1765559049229,-500.0,0.00042191,120]
[398364494,1765559049269,-500.0,0.00042191,120]
[398364495,1765559049309,-929.97,0.00042191,120]
[398364496,1765559049350,-633.36,0.00042191,120]
[398364497,1765559049392,-919.84,0.00042191,120]
[398364498,1765559049432,-578.76,0.00042191,120]
[398364499,1765559049476,-500.0,0.00042191,120]
[398364500,1765559049516,-932.03,0.00042191,120]
[398364501,1765559049554,-500.0,0.00042191,120]
[398364502,1765559049596,-549.96,0.00042191,120]
[398364503,1765559049639,-958.01,0.00042191,120]
[398364504,1765559049679,-500.0,0.00042191,120]
[398364505,1765559049717,-813.54,0.00042191,120]
[398364506,1765559049757,-480.47535748,0.00042191,120]
[398364507,1765559049794,-500.0,0.00042191,120]
[398364508,1765559049832,-500.0,0.00042191,120]
[398364509,1765559049871,-652.93,0.00042191,120]
[398364510,1765559049911,-620.84,0.00042191,120]
[398364511,1765559049952,-1013.55,0.00042191,120]
[398364512,1765559050141,-630.98,0.00042191,120]
[398364513,1765559050191,-548.16,0.00042191,120]
[398364514,1765559050234,-697.09,0.00042191,120]
[398364515,1765559050276,-1179.79,0.00042191,120]
[398364516,1765559050317,-501.56578411,0.00042191,120]
[398364517,1765559050363,-1837.39,0.00042191,120]
[398364518,1765559050404,-500.0,0.00042191,120]
[398364519,1765559050448,-1962.36,0.00042191,120]
[398364520,1765559050489,-1872.12,0.00042191,30]
[398364521,1765559050526,-1714.27,0.00042191,120]
[398364522,1765559050561,-500.0,0.00042191,120]
[398364523,1765559050595,-770.95,0.00042191,120]
[398364524,1765559050630,-1605.92,0.00042191,120]
[398364525,1765559050664,-553.77,0.00042191,120]
[398364526,1765559050700,-715.37,0.00042191,120]
[398364527,1765559050735,-639.0,0.00042191,30]
[398364528,1765559050773,-502.88,0.00042191,120]
[398364529,1765559050809,-500.0,0.00042191,120]
[398364530,1765559050845,-500.0,0.00042191,120]
[398364531,1765559050886,-500.0,0.00042191,120]
[398364532,1765559050932,-508.28,0.00042191,120]
[398364533,1765559050973,-500.0,0.00042191,120]
[398364534,1765559051014,-500.0,0.00042191,120]
[398364535,1765559051053,-500.0,0.00042191,120]
[398364536,1765559051098,-500.0,0.00042191,120]
[398364537,1765559051135,-530.90382472,0.00042191,120]
[398364538,1765559051172,-963.45,0.00042191,120]
[398364539,1765559051208,-425.67468388,0.00042191,120]
[398364540,1765559051245,-865.79,0.00042191,120]
[398364541,1765559051282,-2977.42,0.00042191,120]
[398364542,1765559051319,-500.0,0.00042191,120]
[398364543,1765559051356,-1656.54,0.00042191,120]
[398364544,1765559051393,-605.78,0.00042191,120]
[398364545,1765559051429,-1650.63,0.00042191,120]
[398364546,1765559051466,-500.0,0.00042191,120]
[398364547,1765559051502,-930.56,0.00042191,120]
[398364548,1765559051538,-500.0,0.00042191,120]
[398364549,1765559051574,-328.36487168,0.00042191,120]
[398364550,1765559051609,-500.0,0.00042191,120]
[398364551,1765559051645,-786.96,0.00042191,120]
[398364552,1765559051680,-500.0,0.00042191,120]
[398364553,1765559051716,-680.52,0.00042191,120]
[398364554,1765559051752,-1363.67,0.00042191,120]
[398364555,1765559051790,-568.22,0.00042191,120]
[398364556,1765559051831,-640.61,0.00042191,120]
[398364557,1765559051868,-500.0,0.00042191,120]
[398364558,1765559051907,-500.0,0.00042191,120]
[398364559,1765559051948,-500.0,0.00042191,120]
[398364560,1765559051991,-632.9,0.00042191,120]
[398364561,1765559052034,-1619.86,0.00042191,120]
[398364562,1765559052078,-703.66,0.00042191,120]
[398364563,1765559052123,-500.0,0.00042191,120]
[398364564,1765559052167,-533.28,0.00042191,120]
[398364565,1765559052213,-500.0,0.00042191,120]
[398364566,1765559052257,-567.69,0.00042191,120]
[398364567,1765559052296,-500.0,0.00042191,120]
[398364568,1765559052334,-1644.61,0.00042191,120]
[398364569,1765559052371,-654.37,0.00042191,120]
[398364570,1765559052410,-500.0,0.00042191,120]
[398364571,1765559052448,-695.56,0.00042191,120]
[398364572,1765559052485,-500.0,0.00042191,120]
[398364573,1765559052523,-670.85,0.00042191,120]
[398364574,1765559052560,-1226.93,0.00042191,120]
[398364575,1765559052599,-500.0,0.00042191,120]
[398364576,1765559052638,-1085.27,0.00042191,120]
[398364577,1765559052678,-1127.01,0.00042191,120]
[398364578,1765559052716,-1439.87,0.00042191,120]
[398364579,1765559052758,-501.24544288,0.00042191,120]
[398364580,1765559052797,-838.88,0.00042191,120]
[398364581,1765559052835,-557.55,0.00042191,120]
[398364582,1765559052873,-500.0,0.00042191,120]
[398364583,1765559052912,-500.0,0.00042191,120]
[398364584,1765559052952,-500.0,0.00042191,120]
[398364585,1765559052992,-500.0,0.00042191,120]
[398364586,1765559053032,-500.0,0.00042191,120]
[398364587,1765559053071,-1250.0,0.00042191,120]
[398364588,1765559053111,-571.36,0.00042191,120]
[398364589,1765559053149,-500.0,0.00042191,120]
[398364590,1765559053188,-1126.0,0.00042191,120]
[398364591,1765559053225,-500.0,0.00042191,120]
[398364592,1765559053264,-684.92,0.00042191,120]
[398364593,1765559053303,-339.75350799,0.00042191,120]
[398364594,1765559053346,-801.26,0.00042191,120]
[398364595,1765559053390,-500.0,0.00042191,120]
[398364596,1765559053432,-500.0,0.00042191,120]
[398364597,1765559053471,-612.73,0.00042191,120]
[398364598,1765559053509,-500.0,0.00042191,120]
[398364599,1765559053549,-500.0,0.00042191,120]
[398364600,1765559053590,-500.0,0.00042191,120]
[398364601,1765559053629,-284.43,0.00042191,120]
[398364602,1765559053673,-500.0,0.00042191,120]
[398364603,1765559053713,-509.03,0.00042191,120]
[398364604,1765559053754,-500.0,0.00042191,120]
[398364605,1765559053790,-500.0,0.00042191,120]
[398364606,1765559053825,-570.07,0.00042191,120]
[398364607,1765559054022,-570.53,0.00042191,120]
[398364608,1765559054068,-503.52,0.00042191,120]
[398364609,1765559054118,-500.0,0.00042191,120]
[398364610,1765559054162,-500.0,0.00042191,120]
[398364611,1765559054204,-500.0,0.00042191,120]
[398364612,1765559054245,-500.0,0.00042191,120]
[398364613,1765559054285,-1441.51,0.00042191,120]
[398364614,1765559054330,-956.87,0.00042191,120]
[398364615,1765559054375,-658.49,0.00042191,120]
[398364616,1765559054419,-500.0,0.00042191,120]
[398364617,1765559054463,-1390.11,0.00042191,120]
[398364618,1765559054503,-500.0,0.00042191,120]
[398364619,1765559054540,-656.63,0.00042191,120]
[398364620,1765559054575,-612.94,0.00042191,120]
[398364621,1765559054615,-540.31,0.00042191,120]
[398364622,1765559054652,-6116.92,0.00042191,120]
[398364623,1765559054689,-500.0,0.00042191,120]
[398364624,1765559054728,-500.0,0.00042191,120]
[398364625,1765559054766,-500.0,0.00042191,120]
[398364626,1765559054802,-500.0,0.00042191,120]
[398364627,1765559054839,-1254.82,0.00042191,120]
[398364628,1765559054877,-727.42,0.00042191,120]
[398364629,1765559054919,-1353.24,0.00042191,120]
[398364630,1765559054958,-1002.15,0.00042191,120]
[398364631,1765559054997,-500.0,0.00042191,120]
[398364632,1765559055036,-500.0,0.00042191,120]
[398364633,1765559055079,-4051.53,0.00042191,120]
[398364634,1765559055130,-500.0,0.00042191,120]
[398364635,1765559055169,-500.0,0.00042191,120]
[398364636,1765559055211,-1370.61,0.00042191,120]
[398364637,1765559055255,-500.0,0.00042191,120]
[398364638,1765559055296,-769.88,0.00042191,40]
[398364639,1765559055335,-500.0,0.00042191,120]
[398364640,1765559055376,-500.0,0.00042191,120]
[398364641,1765559055414,-500.0,0.00042191,120]
[398364642,1765559055452,-500.0,0.00042191,120]
[398364643,1765559055489,-500.0,0.00042191,120]
[398364644,1765559055525,-4792.62,0.00042191,120]
[398364645,1765559055562,-500.0,0.00042191,120]
[398364646,1765559055598,-882.96,0.00042191,120]
[398364647,1765559055635,-500.0,0.00042191,120]
[398364648,1765559055672,-3042.53,0.00042191,120]
[398364649,1765559055708,-500.0,0.00042191,120]
[398364650,1765559055745,-724.15,0.00042191,120]
[398364651,1765559055785,-1140.1,0.00042191,120]
[398364652,1765559055822,-500.0,0.00042191,120]
[398364653,1765559055858,-1070.21,0.00042191,120]
[398364654,1765559055895,-500.0,0.00042191,120]
[398364655,1765559055931,-1540.11,0.00042191,120]
[398364656,1765559055966,-500.0,0.00042191,120]
[398364657,1765559056003,-3766.38,0.00042191,120]
[398364658,1765559056041,-517.69,0.00042191,120]
[398364659,1765559056078,-500.0,0.00042191,120]
[398364660,1765559056116,-500.0,0.00042191,120]
[398364661,1765559056153,-665.47,0.00042191,120]
[398364662,1765559056190,-642.33,0.00042191,120]
[398364663,1765559056229,-2396.38,0.00042191,120]
[398364664,1765559056267,-500.0,0.00042191,120]
[398364665,1765559056305,-737.24,0.00042191,120]
[398364666,1765559056345,-6822.47,0.00042191,120]
[398364667,1765559056385,-1104.83,0.00042191,120]
[398364668,1765559056426,-500.0,0.00042191,120]
[398364669,1765559056467,-500.0,0.00042191,120]
[398364670,1765559056506,-500.0,0.00042191,120]
[398364671,1765559056544,-500.0,0.00042191,120]
[398364672,1765559056580,-747.76,0.00042191,120]
[398364673,1765559056616,-500.0,0.00042191,120]
[398364674,1765559056652,-500.0,0.00042191,120]
[398364675,1765559056690,-711.97,0.00042191,120]
[398364676,1765559056728,-529.57,0.00042191,120]
[398364677,1765559056768,-8509.4,0.00042191,120]
[398364678,1765559056803,-1295.86,0.00042191,120]
[398364679,1765559056838,-500.0,0.00042191,120]
[398364680,1765559056874,-3869.1,0.00042191,120]
[398364681,1765559056910,-821.88,0.00042191,120]
[398364682,1765559056946,-2102.78,0.00042191,120]
[398364683,1765559056983,-977.51,0.00042191,120]
[398364684,1765559057019,-757.37,0.00042191,120]
[398364685,1765559057055,-1091.49,0.00042191,30]
[398364686,1765559057091,-2193.68,0.00042191,120]
[398364687,1765559057124,-500.0,0.00042191,30]
[398364688,1765559057160,-2995.42,0.00042191,120]
[398364689,1765559057196,-877.47,0.00042191,120]
[398364690,1765559057232,-500.0,0.00042191,120]
[398364691,1765559057271,-878.07,0.00042191,120]
[398364692,1765559057311,-500.0,0.00042191,120]
[398364693,1765559057353,-1473.95,0.00042191,120]
[398364694,1765559057397,-1886.97,0.00042191,120]
[398364695,1765559057438,-1507.92,0.00042191,120]
[398364696,1765559057479,-558.94,0.00042191,120]
[398364697,1765559057521,-1266.98,0.00042191,120]
[398364698,1765559057561,-500.0,0.00042191,120]
[398364699,1765559057603,-500.0,0.00042191,120]
[398364700,1765559057641,-500.0,0.00042191,120]
[398364701,1765559057682,-2444.73,0.00042191,120]
[398364702,1765559057877,-633.82,0.00042191,120]
[398364703,1765559057919,-500.10355993,0.00042191,120]
[398364704,1765559057961,-500.0,0.00042191,120]
[398364705,1765559058001,-500.0,0.00042192,120]
[398364706,1765559058041,-500.0,0.00042438,60]
[398364707,1765559058084,-6062.91,0.00042465,120]
[398364708,1765559058124,-1252.44645609,0.00042465,60]
[398364709,1765559058163,-500.0,0.00042465,120]
[398364710,1765559058201,-500.0,0.00042465,120]
[398364711,1765559058243,-501.52691026,0.00042465,120]
[398364712,1765559058285,-548.11898739,0.00042465,120]
[398364713,1765559058327,-500.0,0.00042465,120]
[398364714,1765559058368,-776.11,0.00042465,120]
[398364715,1765559058412,-500.0,0.00042465,120]
[398364716,1765559058452,-500.0,0.00042465,120]
[398364717,1765559058493,-500.0,0.00042465,120]
[398364718,1765559058531,-500.0,0.00042465,120]
[398364719,1765559058568,-888.02,0.00042465,120]
[398364720,1765559058605,-500.0,0.00042465,120]
[398364721,1765559058642,-500.0,0.00042465,120]
[398364722,1765559058681,-809.03,0.00042465,120]
[398364723,1765559058716,-500.0,0.00042465,120]
[398364724,1765559058750,-500.0,0.00042465,120]
[398364725,1765559058790,-525.95,0.00042465,120]
[398364726,1765559058826,-500.0,0.00042465,120]
[398364727,1765559058862,-500.0,0.00042465,120]
[398364728,1765559058898,-500.0,0.00042465,120]
[398364729,1765559058933,-500.0,0.00042465,120]
[398364730,1765559058967,-500.0,0.00042465,120]
[398364731,1765559059003,-544.55,0.00042465,120]
[398364732,1765559059041,-918.87,0.00042465,120]
[398364733,1765559059078,-792.62,0.00042465,120]
[398364734,1765559059115,-500.0,0.00042465,120]
[398364735,1765559059155,-500.0,0.00042465,120]
[398364736,1765559059191,-500.0,0.00042465,60]
[398364737,1765559059231,-231.73952099,0.00042465,120]
[398364738,1765559059271,-1249.97,0.00042465,120]